Cogmind - Beta 13 @@@ ROGUE MODE // 2024.03.22 @ 02:21:58 Player: Desymo99 Result: Destroyed by as-85957 with Assembled Blade Performance ------------- Evolutions (0) 0 Regions Visited (3) 600 Robots Destroyed (26) 130 Value Destroyed (496) 496 Prototype IDs (0) 0 Alien Tech Used (0) 0 Bonus (-36) -36 TOTAL SCORE: 1190 Bonus ------- Friendly Fire -36 Cogmind --------- Core Integrity 0/250 Matter 300/300 Energy 250/250 System Corruption 0% Temperature Cool (32) Movement Core (450) Ox8 Location -10/Exiles Parts ------- > --- POWER (1) -------- Ion Engine > --- PROPULSION (2) --- (None) > --- UTILITY (2) ------ Large Storage Unit > --- WEAPON (2) ------- (None) > --- INVENTORY (15) --- Light Ion Engine Aluminum Leg Wheel Medium Matter Pod (100) High-capacity Matter Pod (200) Structural Scanner Visual Processing Unit Targeting Computer Power Shielding Light Armor Plating Light Armor Plating Small Laser Small Laser Datajack Peak State ------------ > --- POWER ------------ Light Nuclear Core > --- PROPULSION ------- Wheel Compact Wheel > --- UTILITY ---------- Large Storage Unit Seismic Detector > --- WEAPON ----------- Particle Gun Assault Rifle > --- INVENTORY -------- Light Ion Engine Light Ion Engine Aluminum Leg Wheel Medium Matter Pod High-capacity Matter Pod Structural Scanner Visual Processing Unit Targeting Computer Power Shielding Light Armor Plating Light Armor Plating Small Laser Small Laser Datajack [Rating: 11] Favorites ----------- Power Light Nuclear Core Engine Light Ion Engine Power Core Light Nuclear Core Propulsion Compact Wheel Wheel Compact Wheel Utility Seismic Detector Device Seismic Detector Storage Large Storage Unit Weapon Assault Rifle Energy Gun EM Pulse Gun Ballistic Gun Assault Rifle Build | -11 -10 -10 -10 ------- Run | Yrd Mat Min Exi Slots Evolved . | . . . . Power . | . . . . Propulsion . | . . . . Utility . | . . . . Weapon . | . . . . Parts Attached 16 | 7 1 8 . Power 4 | 1 . 3 . Engine 3 | 1 . 2 . Core 1 | . . 1 . Reactor . | . . . . Propulsion 4 | 2 . 2 . Treads . | . . . . Leg . | . . . . Wheel 4 | 2 . 2 . Hover . | . . . . Flight . | . . . . Utility 3 | 2 1 . . Device 1 | 1 . . . Storage 2 | 1 1 . . Processor . | . . . . Hackware . | . . . . Protection . | . . . . Artifact . | . . . . Weapon 5 | 2 . 3 . Energy Gun 4 | 2 . 2 . Energy Cannon . | . . . . Ballistic Gun 1 | . . 1 . Ballistic Cannon . | . . . . Launcher . | . . . . Special Weapon . | . . . . Impact Weapon . | . . . . Slashing Weapon . | . . . . Piercing Weapon . | . . . . Special Melee Weapon . | . . . . Unidentified Prototypes . | . . . . Parts Lost 10 | . . 5 5 Power 1 | . . 1 . Propulsion 4 | . . 2 2 Utility 1 | . . . 1 Weapon 4 | . . 2 2 Highest Loss Streak 5 | . . 3 5 To Critical Strikes 1 | . . . 1 Average Slot Usage (%) 98 | . 100 98 97 Engine 7 | . 14 5 14 Core 6 | . . 8 . Wheel 27 | . 28 26 28 Device 13 | . 14 14 12 Storage 14 | . 14 14 14 Energy Gun 16 | . 28 14 14 Ballistic Gun 11 | . . 13 14 Naked Turns . | . . . . Heaviest Build 31 | 13 28 31 31 Greatest Support 32 | 26 26 32 26 Greatest Overweight (x) 8 | . 1 1 8 Average Overweight (x) . | . . . 1 Largest Inventory Capacity 15 | 8 15 15 15 Average Capacity 13 | 7 12 15 15 Most Carried 15 | 7 10 15 15 Average Carried 11 | 4 8 13 14 Final Capacity 15 | 8 15 15 15 Final Carried 15 | 7 10 15 14 Class Distribution -------------------- 65% | Scavenger-Mutant 34% | Mutant Dominant Class ---------------- Mutant | -10/Materials Scavenger-Mutant | -10/Mines Scavenger-Mutant | -10/Exiles Resources | -11 -10 -10 -10 ----------- Run | Yrd Mat Min Exi Matter Collected 806 | 360 10 436 . Remotely . | . . . . Salvage Created 937 | 249 160 528 . Parts 66 | 12 20 34 . Haulers Intercepted 1 | . 1 . . Recyclers Shooed 1 | . . 1 . Parts Field Recycled . | . . . . Retrieved Matter . | . . . . Parts Self-Destructed . | . . . . Prevented . | . . . . Kills | -11 -10 -10 -10 ------- Run | Yrd Mat Min Exi Combat Hostiles Destroyed 14 | . 3 11 . Guns 14 | . 3 11 . Classes Destroyed 9 | 3 4 2 . Worker 2 | 2 . . . Tunneler 5 | 4 . 1 . Hauler 1 | . 1 . . Recycler 2 | 1 . 1 . Operator 1 | . 1 . . Watcher 1 | . 1 . . Swarmer 6 | . 3 3 . Grunt 6 | . . 6 . Sentry 2 | . . 2 . Best Kill Streak 5 | 5 3 3 . Combat Bots Only 3 | . 3 3 . Max Kills in Single Turn 1 | 1 1 1 . Gunslinging . | . . . . Exploded . | . . . . Melee . | . . . . Uniques/NPCs Destroyed . | . . . . Combat | -11 -10 -10 -10 -------- Run | Yrd Mat Min Exi Hostile Shots Fired 95 | . 5 60 30 Missed 23 | . . 15 8 Damage Taken 980 | 24 35 552 369 Core 269 | . 6 131 132 Absorbed by Shields . | . . . . Core Remaining (%) 100 | 100 . . . Volleys Fired 92 | 14 12 61 5 Largest 2 | 2 2 2 2 Hottest 85 | 80 80 85 85 Shots Fired 176 | 28 24 115 9 Gun 176 | 28 24 115 9 Cannon . | . . . . Launcher . | . . . . Special . | . . . . Kinetic 61 | . . 57 4 Thermal 56 | . . 51 5 Explosive . | . . . . Electromagnetic 59 | 28 24 7 . Robot Hit Streak 14 | 4 11 14 6 Robot Miss Streak 4 | 4 2 3 1 Penetration Max . | . . . . Secondary Targets 2 | . . 2 . Max Gunslinging Chain 1 | . . 1 . Shots Hit Robots 87 | 14 14 55 4 Core Hits 38 | 7 7 22 2 Critical Kills 1 | . . 1 . Critical Parts Destroyed . | . . . . Critical Strikes 3 | . 2 1 . Destroy 1 | . . 1 . Corrupt 2 | . 2 . . Melee Attacks . | . . . . Impact . | . . . . Slashing . | . . . . Piercing . | . . . . Sneak Attacks . | . . . . Combat Hostiles . | . . . . Follow-up Attacks . | . . . . Damage Inflicted 1222 | 263 243 684 32 Guns 1131 | 219 201 684 27 Cannons . | . . . . Explosions 86 | 44 42 . . Melee . | . . . . Ramming 5 | . . . 5 Kinetic 339 | . . 314 25 Thermal 393 | 44 42 305 2 Explosive . | . . . . Electromagnetic 485 | 219 201 65 . Impact . | . . . . Slashing . | . . . . Piercing . | . . . . Highest Corruption . | . . . . Average Corruption . | . . . . Corruption Purged . | . . . . Corruption Blocked . | . . . . Overload Shots . | . . . . Overflow Damage 4 | 4 . . . Projectiles . | . . . . Explosions 4 | 4 . . . Melee . | . . . . Knockbacks . | . . . . Impact . | . . . . Kinetic . | . . . . Secondary . | . . . . Self-Inflicted Damage 26 | 24 . . 2 Shots 1 | 1 . . . Rammed 1 | . . . 1 Targets Rammed 1 | . . . 1 Kicked . | . . . . Crushed . | . . . . Highest Temperature 141 | 108 72 141 72 Average Temperature 41 | 35 30 46 33 Received Heat Transfer 284 | . . 264 20 Siege Activations . | . . . . Robots Corrupted 1 | 1 . . . Combat Hostiles . | . . . . Parts Fried 2 | 1 1 . . Impact Corruptions . | . . . . Robots Melted . | . . . . Combat Hostiles . | . . . . Parts Melted . | . . . . Heat Transferred 827 | 50 50 709 18 Parts Sabotaged . | . . . . Parts Stolen . | . . . . Parts Stripped . | . . . . Power Chain Reactions 2 | 1 1 . . Alert | -11 -10 -10 -10 ------- Run | Yrd Mat Min Exi Peak Influence 221 | 35 132 221 . Initial 51 | . 22 51 . Average 76 | 14 66 90 . Maximum Alert Level 1 | . . 1 . Low Security (%) 95 | 100 100 93 . Level 1 4 | . . 6 . Level 2 . | . . . . Level 3 . | . . . . Level 4 . | . . . . Level 5 . | . . . . High Security . | . . . . Max Security . | . . . . Squads Dispatched . | . . . . Investigation . | . . . . Extermination . | . . . . Reinforcement . | . . . . Assault . | . . . . Garrison . | . . . . Intercept . | . . . . Searches Triggered . | . . . . Construction Impeded . | . . . . Haulers Reinforced . | . . . . Active Scanning Responses . | . . . . Cargo Convoy Interrupts . | . . . . Stealth | -11 -10 -10 -10 --------- Run | Yrd Mat Min Exi Distress Signals . | . . . . Communications Jammed . | . . . . Distress Signals . | . . . . Times Spotted 25 | . 5 12 8 Peak Tracking Total 9 | . 3 3 9 Tactical Retreats 2 | . . 2 . Traps | -11 -10 -10 -10 ------- Run | Yrd Mat Min Exi Traps Triggered . | . . . . Indirectly . | . . . . Trap Hack Attempts . | . . . . Triggered . | . . . . Disarmed . | . . . . Reprogrammed . | . . . . Reused . | . . . . Traps Extracted . | . . . . Installed . | . . . . Triggered . | . . . . Machines | -11 -10 -10 -10 ---------- Run | Yrd Mat Min Exi Machines Disabled 3 | . 1 1 1 Max in Single Turn 1 | . 1 1 1 Machines Repaired . | . . . . Machines Dismantled . | . . . . Machines Sabotaged . | . . . . Overloaded Fab Kills . | . . . . Hacking | -11 -10 -10 -10 --------- Run | Yrd Mat Min Exi Machines Accessed . | . . . . Terminals . | . . . . Fabricators . | . . . . Repair Stations . | . . . . Recycling Units . | . . . . Scanalyzers . | . . . . Garrison Access . | . . . . Total Hacks . | . . . . Successful . | . . . . Failed . | . . . . Catastrophic . | . . . . Database Lockouts . | . . . . Manual . | . . . . Terminals . | . . . . Fabricators . | . . . . Repair Stations . | . . . . Recycling Units . | . . . . Scanalyzers . | . . . . Garrison Access . | . . . . Terminal Hacks . | . . . . Fabricator Hacks . | . . . . Repair Station Hacks . | . . . . Recycling Unit Hacks . | . . . . Scanalyzer . | . . . . Garrison Access Hacks . | . . . . Unauthorized Hacks . | . . . . Terminals . | . . . . Fabricators . | . . . . Repair Stations . | . . . . Recycling Units . | . . . . Scanalyzers . | . . . . Garrison Access . | . . . . Data Cores Recovered 1 | . 1 . . Used . | . . . . Hacking Detections . | . . . . Full Trace Events . | . . . . Feedback Events . | . . . . Feedback Blocked . | . . . . Robot Schematics Acquired . | . . . . Robots Built . | . . . . Authchips . | . . . . Time . | . . . . Total Robot Build Rating . | . . . . Part Schematics Acquired . | . . . . Parts Built . | . . . . Authchips . | . . . . Time . | . . . . Total Part Build Rating . | . . . . Parts Repaired . | . . . . Time . | . . . . Parts Recycled . | . . . . Recycled Matter . | . . . . Retrieved Matter . | . . . . Retrieved Components . | . . . . Parts Scanalyzed . | . . . . Part Schematics Acquired . | . . . . Parts Damaged . | . . . . Bothacking | -11 -10 -10 -10 ------------ Run | Yrd Mat Min Exi Used RIF Installer . | . . . . Robots Hacked . | . . . . Non-combat . | . . . . Combat . | . . . . Robot Hacks Applied . | . . . . Relay Couplers Released . | . . . . Fabnet Peak Effective % . | . . . . Robots Rewired . | . . . . Allies Hacked . | . . . . Hacks Repelled . | . . . . Allies | -11 -10 -10 -10 -------- Run | Yrd Mat Min Exi Total Allies 3 | . . 3 . Largest Group 3 | . . 3 . Highest-Rated Group 40 | . . 40 . Highest-Rated Ally 16 | . . 16 . Total Orders . | . . . . Ally Attacks . | . . . . Total Damage . | . . . . Kills . | . . . . Allies Corrupted . | . . . . Allies Melted . | . . . . Intel | -11 -10 -10 -10 ------- Run | Yrd Mat Min Exi Robot Analysis Total . | . . . . Derelict Logs Recovered 2 | . . 2 . Drone Launches . | . . . . Drone Recoveries . | . . . . Exploration | -11 -10 -10 -10 ------------- Run | Yrd Mat Min Exi Turns Passed 1326 | 177 159 917 73 Spaces Moved 941 | 126 110 653 52 Core 8 | 7 . . 1 Treads . | . . . . Legs . | . . . . Wheels 933 | 119 110 653 51 Hover . | . . . . Flight . | . . . . Fastest Speed 50 | 50 90 100 105 Average Speed 101 | 88 97 103 111 Slowest Speed 450 | 100 105 115 450 Overloaded Moves . | . . . . Propulsion Burnouts . | . . . . Robots Hopped . | . . . . Cave-ins Triggered . | . . . . Exploration Rate (%) 34 | 5 21 99 11 Regions Visited 3 Branch Regions 2 Pre-discovered Areas 1 | . . 1 . Known Exits Taken . | . . . . Unknown Exits Taken 3 | 1 1 1 . Scrap Searched 1 | . . 1 . Spaces Dug . | . . . . Terrain Destroyed 9 | 3 6 . . Melee . | . . . . Projectile . | . . . . AOE 9 | 3 6 . . Terrain Rammed . | . . . . Walls Destroyed . | . . . . Machines Disabled . | . . . . Actions | -11 -10 -10 -10 --------- Run | Yrd Mat Min Exi Total 1138 | 161 138 774 65 Wait 63 | 7 8 48 . Move 938 | 125 109 652 52 Hop . | . . . . Pick Up 21 | 8 5 5 3 Fast Attach 8 | 6 . 2 . Attach 4 | 1 . 3 . Detach . | . . . . Swap 4 | . 1 3 . Drop 7 | . 3 . 4 Fire 92 | 14 12 61 5 Melee . | . . . . Ram 1 | . . . 1 Kick . | . . . . Crush . | . . . . Escape Stasis . | . . . . Rewire . | . . . . Trap . | . . . . Miscellaneous . | . . . . Route ------- -11/Scrapyard -10/Materials -10/Mines (discovered 3 exits: [*Mat x2] / [*Exi]) -10/Exiles History --------- Turn | Location | Event 4 | -11/Scrapyard | Discovered new exit (range 15) 178 | -11/Scrapyard | Entered Materials 289 | -10/Materials | Discovered new exit (range 16) 301 | -10/Materials | Build established: Mutant 337 | -10/Materials | Entered Mines 348 | -10/Mines | Met a Derelict bent on vengeance 419 | -10/Mines | Lost 3 parts (1n2w) 451 | -10/Mines | Discovered new exit (range 9) 708 | -10/Mines | Discovered new exit (range 12) 749 | -10/Mines | Build established: Scavenger-Mutant 877 | -10/Mines | Core integrity fell below 50% 973 | -10/Mines | Learned location of Mines (-9) 997 | -10/Mines | Assisted by bots powering up and referring to "LRC-V3" 1250 | -10/Mines | Deemed a non-threat by the Exiles lab entrance 1250 | -10/Mines | Discovered new exit (range 5) 1254 | -10/Mines | Entered Exiles 1301 | -10/Exiles | Met 8R-AWN 1317 | -10/Exiles | Attacked by the Exiles 1326 | -10/Exiles | Core integrity fell below 20% 1327 | -10/Exiles | Destroyed by as-85957 with Assembled Blade Last Messages --------------- 01320_ Assault Rifle destroyed. 01320_ HV Slug penetrates Wall. 01320_ Penetrated by HV Slug. 01320_ HV Slug penetrates Wall. 01320_ Com. Wheel destroyed. 01322_ Penetrated by HV Slug. 01322_ HV Slug penetrates Wall. 01322_ Penetrated by HV Slug. 01322_ HV Slug penetrates Wall. 01324_ Slammed into as-85957. 01324_ Penetrated by HV Slug. 01324_ Critical hit (Destroy). 01324_ Wheel destroyed. 01324_ HV Slug penetrates Wall. 01324_ Penetrated by HV Slug. 01324_ HV Slug penetrates Wall. 01325_ Particle Gun destroyed. 01326_ HV Slug penetrates Wall. 01326_ HV Slug penetrates as-18697. 01326_ HV Slug penetrates Wall. Map ----- +----------------------------------------------------+ | ?????????????????????????????????????????????????? | | ?????????????????????????????????????????????????? | | ?????????????????????????????????????????????????? | | ?????????????????????????????????????????????????? | | ?????????????????????????????????????????????????? | | ?????????????????????????????????????????????????? | | ?????????????????????????????????????????????????? | | ?????????????????????????????????????????????????? | | ?????????????????????????????????????????????????? | | ?????????????????????????????????????????????????? | | ?????????????????????????????????????????????????? | | ?????????????????????????????????????????????????? | | ?????????????????????????????????????????????????? | | ?????????????????????????????????????????????????? | | ???????????????????????????????????????????????? | | ???????????????????????????????????????????????? | | ???????????????????????????????????????????????# | | ?????????????????????????????????????????????## | | ?????????????????????????????????????????????# | | ?????????????????????????#####???????????????# | | ????????????????????????## #??????????????## | | ????????????????????????#" g #?????????????## | | ???????????????????????##" * ##????????????# | | ?????????????????????### ###????????### # | | ?????????????????????# ########## # | | ????????????????????## @% #""""## #? | | ????????????????????# a * ## | | ???????????????? a #; * # | | ????????????? ##;# * # | | ??????????? a ""?##"""""#### | | ???????????? a #"""#??#######??#### | | ???????????? a #####???????????????##### | | ???????????? a ?????????????????????????### | | ????????????? a ????????????????????????????### | | ????????????? "???????????????????????????????### | | ????????????????????????????????????????????????#" | | ????????????????????????????????????????????????## | | ?????????????????????????????????????????????????? | | ?????????????????????????????????????????????????? | | ?????????????????????????????????????????????????? | | ?????????????????????????????????????????????????? | | ?????????????????????????????????????????????????? | | ?????????????????????????????????????????????????? | | ?????????????????????????????????????????????????? | | ?????????????????????????????????????????????????? | | ?????????????????????????????????????????????????? | | ?????????????????????????????????????????????????? | | ?????????????????????????????????????????????????? | | ?????????????????????????????????????????????????? | | ?????????????????????????????????????????????????? | +----------------------------------------------------+ Best States ------------- Heat Dissipation 25 Energy Generation 14 Energy Capacity 250 Matter Stores 300 Matter Capacity 300 Sight Range 16 Terrain Scan Density 10 Evasion (%) 42 Item Schematics ----------------- None Robot Schematics ------------------ None Fabricated ------------ Nothing Alien Tech Used ----------------- None Achievements -------------- None Challenges ------------ None Game ------ Seed 14021999 Manual? 1 Play Time 00:12:03 Cumulative 18.0 hours Start 2024.03.22 @ 02:10:46 End 2024.03.22 @ 02:21:58 Sessions 1 Manual Loads 0 Difficulty Rogue Special Mode None Game No. 30 Rogue 30 Adventurer 0 Explorer 0 Win Type - Total 0 Types 0/0/0/0/0/0/0/0/0 Lore% 22 Gallery% 23 Achievement% 22 Wizard Run 0 Options --------- Layout 1 ASCII 0 Keyboard 1 Movement Numpad Keybinds 0 Fullscreen 1 Font 16/SmallcapsGlow Map View 55x38 Zoom Use 0% Tactical HUD 1 Map Filters NONE Filters NONE Steam 1 RUN: a11e9997-d25f-493f-b886-83d7beaed746